Cogmind - Beta 13 @@@ ROGUE MODE // 2024.06.26 @ 03:42:58 Player: celerysam Result: Self-destructed Performance ------------- Evolutions (1) 500 Regions Visited (5) 1000 Robots Destroyed (35) 175 Value Destroyed (915) 915 Prototype IDs (0) 0 Alien Tech Used (0) 0 Bonus (890) 890 TOTAL SCORE: 3480 Bonus ------- Pacifist 200 Follower Combat Kills 202 Met Imprinter 300 Was Imprinted 300 Friendly Fire -112 Cogmind --------- Core Integrity 20/400 Matter 300/300 Energy 100/100 System Corruption 6% Temperature Cool (0) Movement Core (350) Ox6 Location -6/Proximity Caves Parts ------- > --- POWER (1) -------- (None) > --- PROPULSION (4) --- (None) > --- UTILITY (2) ------ Large Storage Unit Improved Targeting Computer > --- WEAPON (2) ------- (None) > --- INVENTORY (15) --- Light Nuclear Core Angular Momentum Engine Neutrino Core ECM Suite Light Armor Plating Improved Light Armor Plating Heavy Missile Launcher CR-A16's Pointy Stick Self-destruct Interrupter (50) GAL Module Peak State ------------ > --- POWER ------------ Reinforced Ion Engine > --- PROPULSION ------- Light Treads Light Treads Improved Treads Improved Treads > --- UTILITY ---------- Large Storage Unit Improved Targeting Computer > --- WEAPON ----------- Shotgun Heavy Battle Rifle > --- INVENTORY -------- Light Nuclear Core Angular Momentum Engine ECM Suite Light Armor Plating Heavy Missile Launcher CR-A16's Pointy Stick Self-destruct Interrupter GAL Module [Rating: 20] Favorites ----------- Power Reinforced Ion Engine Engine Reinforced Ion Engine Power Core Light Nuclear Core Propulsion Light Treads Treads Light Treads Wheel Wheel Utility Improved Targeting Computer Storage Small Storage Unit Processor Improved Targeting Computer Protection Light Armor Plating Weapon Shotgun Energy Gun Medium Laser Ballistic Gun Shotgun Build | -11 -10 -9 -9 -7 -6 ------- Run | Yrd Mat Mat Min Zio Pro Slots Evolved 2 | . . 2 . . . Power . | . . . . . . Propulsion 2 | . . 2 . . . Utility . | . . . . . . Weapon . | . . . . . . Parts Attached 45 | 8 5 26 4 2 . Power 8 | 1 . 6 1 . . Engine 6 | 1 . 4 1 . . Core 2 | . . 2 . . . Reactor . | . . . . . . Propulsion 19 | 4 2 11 2 . . Treads 15 | 2 . 11 2 . . Leg . | . . . . . . Wheel 4 | 2 2 . . . . Hover . | . . . . . . Flight . | . . . . . . Utility 6 | 1 1 2 1 1 . Device . | . . . . . . Storage 3 | 1 1 . . 1 . Processor 1 | . . 1 . . . Hackware . | . . . . . . Protection 2 | . . 1 1 . . Artifact . | . . . . . . Weapon 12 | 2 2 7 . 1 . Energy Gun 1 | 1 . . . . . Energy Cannon . | . . . . . . Ballistic Gun 11 | 1 2 7 . 1 . Ballistic Cannon . | . . . . . . Launcher . | . . . . . . Special Weapon . | . . . . . . Impact Weapon . | . . . . . . Slashing Weapon . | . . . . . . Piercing Weapon . | . . . . . . Special Melee Weapon . | . . . . . . Unidentified Prototypes . | . . . . . . Parts Lost 8 | . . 1 . . 7 Power 2 | . . 1 . . 1 Propulsion 4 | . . . . . 4 Utility . | . . . . . . Weapon 2 | . . . . . 2 Highest Loss Streak 5 | . . 1 . . 5 To Critical Strikes . | . . . . . . Average Slot Usage (%) 97 | . 82 94 100 100 94 Engine 10 | . 14 8 11 11 11 Treads 41 | . . 39 44 44 41 Wheel 1 | . 25 1 . . . Storage 3 | . 15 6 . . 11 Processor 10 | . . 9 11 11 11 Protection 7 | . . 4 11 10 . Ballistic Gun 21 | . 17 22 22 22 19 Naked Turns . | . . . . . . Heaviest Build 37 | 11 12 18 19 37 37 Greatest Support 86 | 40 26 83 86 86 86 Greatest Overweight (x) 2 | . 2 . . . . Average Overweight (x) . | . . . . . . Largest Inventory Capacity 25 | 8 25 8 5 15 15 Average Capacity 7 | 7 8 6 5 5 15 Most Carried 10 | 5 8 8 5 6 10 Average Carried 5 | 2 6 6 5 5 8 Final Capacity 15 | 8 8 5 5 15 15 Final Carried 10 | 5 8 5 5 6 10 Class Distribution -------------------- 67% | Scavenger-Mutant 32% | Mutant Dominant Class ---------------- Mutant | -10/Materials Scavenger-Mutant | -9/Materials Scavenger-Mutant | -9/Mines Scavenger-Mutant | -7/Zion Mutant | -6/Proximity Caves Resources | -11 -10 -9 -9 -7 -6 ----------- Run | Yrd Mat Mat Min Zio Pro Matter Collected 1252 | 217 . 778 113 10 134 Remotely . | . . . . . . Salvage Created 1298 | . . 911 126 . 261 Parts 85 | . . 71 7 . 7 Haulers Intercepted . | . . . . . . Recyclers Shooed 1 | . . . 1 . . Parts Field Recycled . | . . . . . . Retrieved Matter . | . . . . . . Parts Self-Destructed 15 | . . . . . 15 Prevented 1 | . . . . . 1 Kills | -11 -10 -9 -9 -7 -6 ------- Run | Yrd Mat Mat Min Zio Pro Combat Hostiles Destroyed 26 | . . 20 3 . 3 Melee 1 | . . 1 . . . Guns 25 | . . 19 3 . 3 Classes Destroyed 8 | . . 7 1 . . Worker 3 | . . 3 . . . Recycler 1 | . . 1 . . . Watcher 4 | . . 4 . . . Swarmer 9 | . . 8 . . 1 Grunt 9 | . . 5 2 . 2 Brawler 1 | . . . 1 . . Duelist 1 | . . 1 . . . Sentry 7 | . . 6 . . 1 Best Kill Streak 6 | . . 6 3 . 1 Combat Bots Only 5 | . . 5 3 . 1 Max Kills in Single Turn 2 | . . 2 1 . 2 Gunslinging . | . . . . . . Exploded . | . . . . . . Melee 1 | . . 1 . . . Uniques/NPCs Destroyed . | . . . . . . Combat | -11 -10 -9 -9 -7 -6 -------- Run | Yrd Mat Mat Min Zio Pro Hostile Shots Fired 222 | . . 114 19 . 89 Missed 61 | . . 31 3 . 27 Damage Taken 2361 | . . 1047 180 . 1134 Core 380 | . . 108 . . 272 Absorbed by Shields . | . . . . . . Core Remaining (%) 100 | 100 100 . . . . Volleys Fired 96 | . . 63 9 . 24 Largest 2 | . . 2 2 . 2 Hottest 56 | . . 46 46 . 56 Shots Fired 186 | . . 126 18 . 42 Gun 186 | . . 126 18 . 42 Cannon . | . . . . . . Launcher . | . . . . . . Special . | . . . . . . Kinetic 186 | . . 126 18 . 42 Thermal . | . . . . . . Explosive . | . . . . . . Electromagnetic . | . . . . . . Robot Hit Streak 12 | . . 12 8 . 7 Robot Miss Streak 5 | . . 3 2 . 5 Penetration Max . | . . . . . . Secondary Targets 5 | . . 4 . . 1 Max Gunslinging Chain 1 | . . 1 . . 1 Shots Hit Robots 123 | . . 80 13 . 30 Core Hits 63 | . . 40 7 . 16 Critical Kills . | . . . . . . Critical Parts Destroyed . | . . . . . . Critical Strikes . | . . . . . . Melee Attacks . | . . . . . . Impact . | . . . . . . Slashing . | . . . . . . Piercing . | . . . . . . Sneak Attacks . | . . . . . . Combat Hostiles . | . . . . . . Follow-up Attacks . | . . . . . . Damage Inflicted 1903 | . . 1175 215 . 513 Guns 1889 | . . 1172 204 . 513 Cannons . | . . . . . . Explosions . | . . . . . . Melee . | . . . . . . Ramming 14 | . . 3 11 . . Kinetic 1889 | . . 1172 204 . 513 Thermal . | . . . . . . Explosive . | . . . . . . Electromagnetic . | . . . . . . Impact . | . . . . . . Slashing . | . . . . . . Piercing . | . . . . . . Highest Corruption 6 | . . . . . 6 Average Corruption 6 | . . . . . 6 Corruption Purged . | . . . . . . Corruption Blocked . | . . . . . . Effects 1 | . . . . . 1 Message Errors 1 | . . . . . 1 Overload Shots . | . . . . . . Overflow Damage . | . . . . . . Projectiles . | . . . . . . Explosions . | . . . . . . Melee . | . . . . . . Knockbacks . | . . . . . . Impact . | . . . . . . Kinetic . | . . . . . . Secondary . | . . . . . . Self-Inflicted Damage . | . . . . . . Shots . | . . . . . . Rammed 1 | . . . 1 . . Targets Rammed 2 | . . 1 1 . . Kicked . | . . . . . . Crushed 1 | . . 1 . . . Highest Temperature 38 | . . 38 28 . 15 Average Temperature 9 | . . 8 15 . 5 Received Heat Transfer 587 | . . 342 96 . 149 Siege Activations . | . . . . . . Robots Corrupted . | . . . . . . Combat Hostiles . | . . . . . . Parts Fried . | . . . . . . Impact Corruptions . | . . . . . . Robots Melted . | . . . . . . Combat Hostiles . | . . . . . . Parts Melted . | . . . . . . Heat Transferred . | . . . . . . Parts Sabotaged . | . . . . . . Parts Stolen . | . . . . . . Parts Stripped . | . . . . . . Power Chain Reactions . | . . . . . . Alert | -11 -10 -9 -9 -7 -6 ------- Run | Yrd Mat Mat Min Zio Pro Peak Influence 366 | . . 366 174 . . Initial 104 | . . . 104 . . Average 178 | . . 214 160 . . Maximum Alert Level 1 | . . 1 . . . Low Security (%) 50 | 100 100 32 100 . . Level 1 49 | . . 67 . . . Level 2 . | . . . . . . Level 3 . | . . . . . . Level 4 . | . . . . . . Level 5 . | . . . . . . High Security . | . . . . . . Max Security . | . . . . . . Squads Dispatched 3 | . 1 1 . . 1 Investigation . | . . . . . . Extermination . | . . . . . . Reinforcement 2 | . 1 1 . . . Assault 1 | . . . . . 1 Garrison . | . . . . . . Intercept . | . . . . . . Searches Triggered . | . . . . . . Construction Impeded . | . . . . . . Haulers Reinforced . | . . . . . . Active Scanning Responses . | . . . . . . Cargo Convoy Interrupts . | . . . . . . Stealth | -11 -10 -9 -9 -7 -6 --------- Run | Yrd Mat Mat Min Zio Pro Distress Signals 5 | . . 5 . . . Communications Jammed . | . . . . . . Distress Signals . | . . . . . . Times Spotted 47 | . . 29 3 . 15 Peak Tracking Total 7 | . 1 7 3 . 6 Tactical Retreats . | . . . . . . Traps | -11 -10 -9 -9 -7 -6 ------- Run | Yrd Mat Mat Min Zio Pro Traps Triggered 1 | . 1 . . . . Indirectly . | . . . . . . Trap Hack Attempts . | . . . . . . Triggered . | . . . . . . Disarmed . | . . . . . . Reprogrammed . | . . . . . . Reused . | . . . . . . Traps Extracted . | . . . . . . Installed . | . . . . . . Triggered . | . . . . . . Machines | -11 -10 -9 -9 -7 -6 ---------- Run | Yrd Mat Mat Min Zio Pro Machines Disabled 1 | . . 1 . . . Max in Single Turn 1 | . . 1 . . . Machines Repaired . | . . . . . . Machines Dismantled . | . . . . . . Machines Sabotaged . | . . . . . . Overloaded Fab Kills . | . . . . . . Hacking | -11 -10 -9 -9 -7 -6 --------- Run | Yrd Mat Mat Min Zio Pro Machines Accessed 1 | . . 1 . . . Terminals 1 | . . 1 . . . Fabricators . | . . . . . . Repair Stations . | . . . . . . Recycling Units . | . . . . . . Scanalyzers . | . . . . . . Garrison Access . | . . . . . . Total Hacks 2 | . . 2 . . . Successful . | . . . . . . Failed 2 | . . 2 . . . Catastrophic . | . . . . . . Database Lockouts . | . . . . . . Manual 2 | . . . . 2 . Terminals 2 | . . 2 . . . Fabricators . | . . . . . . Repair Stations . | . . . . . . Recycling Units . | . . . . . . Scanalyzers . | . . . . . . Garrison Access . | . . . . . . Terminal Hacks . | . . . . . . Fabricator Hacks . | . . . . . . Repair Station Hacks . | . . . . . . Recycling Unit Hacks . | . . . . . . Scanalyzer . | . . . . . . Garrison Access Hacks . | . . . . . . Unauthorized Hacks . | . . . . . . Terminals . | . . . . . . Fabricators . | . . . . . . Repair Stations . | . . . . . . Recycling Units . | . . . . . . Scanalyzers . | . . . . . . Garrison Access . | . . . . . . Data Cores Recovered . | . . . . . . Used . | . . . . . . Hacking Detections . | . . . . . . Full Trace Events . | . . . . . . Feedback Events . | . . . . . . Feedback Blocked . | . . . . . . Robot Schematics Acquired . | . . . . . . Robots Built . | . . . . . . Authchips . | . . . . . . Time . | . . . . . . Total Robot Build Rating . | . . . . . . Part Schematics Acquired . | . . . . . . Parts Built . | . . . . . . Authchips . | . . . . . . Time . | . . . . . . Total Part Build Rating . | . . . . . . Parts Repaired . | . . . . . . Time . | . . . . . . Parts Recycled . | . . . . . . Recycled Matter . | . . . . . . Retrieved Matter . | . . . . . . Retrieved Components . | . . . . . . Parts Scanalyzed . | . . . . . . Part Schematics Acquired . | . . . . . . Parts Damaged . | . . . . . . Bothacking | -11 -10 -9 -9 -7 -6 ------------ Run | Yrd Mat Mat Min Zio Pro Used RIF Installer . | . . . . . . Robots Hacked . | . . . . . . Non-combat . | . . . . . . Combat . | . . . . . . Robot Hacks Applied . | . . . . . . Relay Couplers Released . | . . . . . . Fabnet Peak Effective % . | . . . . . . Robots Rewired . | . . . . . . Allies Hacked . | . . . . . . Hacks Repelled . | . . . . . . Allies | -11 -10 -9 -9 -7 -6 -------- Run | Yrd Mat Mat Min Zio Pro Total Allies 7 | . . . 3 4 . Largest Group 7 | . . . 3 7 7 Highest-Rated Group 189 | . . . 40 189 189 Highest-Rated Ally 39 | . . . 16 39 39 Total Orders . | . . . . . . Ally Attacks 50 | . . . . . 50 Total Damage 691 | . . . . . 691 Kills 7 | . . . . . 7 Allies Corrupted . | . . . . . . Allies Melted . | . . . . . . Intel | -11 -10 -9 -9 -7 -6 ------- Run | Yrd Mat Mat Min Zio Pro Robot Analysis Total . | . . . . . . Derelict Logs Recovered 2 | . . . 1 1 . Drone Launches . | . . . . . . Drone Recoveries . | . . . . . . Exploration | -11 -10 -9 -9 -7 -6 ------------- Run | Yrd Mat Mat Min Zio Pro Turns Passed 3988 | 96 118 1121 187 1927 539 Spaces Moved 2306 | 64 114 546 93 1197 292 Core 9 | 7 2 . . . . Treads 2101 | 31 . 488 93 1197 292 Legs . | . . . . . . Wheels 196 | 26 112 58 . . . Hover . | . . . . . . Flight . | . . . . . . Fastest Speed 50 | 50 90 90 160 160 160 Average Speed 153 | 119 91 152 160 160 160 Slowest Speed 160 | 160 150 160 160 160 160 Overloaded Moves . | . . . . . . Propulsion Burnouts . | . . . . . . Robots Hopped . | . . . . . . Cave-ins Triggered . | . . . . . . Exploration Rate (%) 40 | 4 27 55 23 88 44 Regions Visited 5 Branch Regions 3 Pre-discovered Areas 1 | . . . . 1 . Known Exits Taken . | . . . . . . Unknown Exits Taken 5 | 1 1 1 1 1 . Scrap Searched 5 | . . . 1 2 2 Spaces Dug . | . . . . . . Terrain Destroyed 1 | . . . . . 1 Melee . | . . . . . . Projectile 1 | . . . . . 1 AOE . | . . . . . . Terrain Rammed . | . . . . . . Walls Destroyed . | . . . . . . Machines Disabled . | . . . . . . Actions | -11 -10 -9 -9 -7 -6 --------- Run | Yrd Mat Mat Min Zio Pro Total 2582 | 82 129 726 114 1210 321 Wait 56 | . . 49 3 4 . Move 2301 | 63 113 545 92 1196 292 Hop . | . . . . . . Pick Up 41 | 11 7 14 1 4 4 Fast Attach 4 | . 1 3 . . . Attach 15 | 6 3 6 . . . Detach 1 | . 1 . . . . Swap 26 | 2 1 17 4 2 . Drop 39 | . 3 28 4 4 . Fire 96 | . . 63 9 . 24 Melee . | . . . . . . Ram . | . . . . . . Kick . | . . . . . . Crush 2 | . . 1 1 . . Escape Stasis . | . . . . . . Rewire 1 | . . . . . 1 Trap . | . . . . . . Miscellaneous . | . . . . . . Route ------- -11/Scrapyard -10/Materials -9/Materials -9/Mines (discovered 2 exits: [*Mat] / *Zio) -7/Zion -6/Proximity Caves History --------- Turn | Location | Event 70 | -11/Scrapyard | Discovered new exit (range 14) 97 | -11/Scrapyard | Entered Materials 208 | -10/Materials | Discovered new exit (range 3) 215 | -10/Materials | Entered another Materials area 215 | -9/Materials | Evolved 2 slots: Propulsion x2 301 | -9/Materials | Build established: Mutant 1031 | -9/Materials | Build established: Scavenger-Mutant 1308 | -9/Materials | Discovered new exit (range 9) 1336 | -9/Materials | Entered Mines 1451 | -9/Mines | Learned 2 Materials zone layouts 1478 | -9/Mines | Assisted by bots powering up and referring to "LRC-V3" 1513 | -9/Mines | A Derelict revealed a hidden shortcut to a safe place 1521 | -9/Mines | Discovered new exit (range 5) 1523 | -9/Mines | Entered Zion 1523 | -7/Zion | Accompanied by 3 allies 1849 | -7/Zion | Learned location of Extension (-5) 1934 | -7/Zion | Found CR-A16's Pointy Stick 2225 | -7/Zion | Discovered new exit (range 16) 2540 | -7/Zion | Imprinted 2542 | -7/Zion | Declared Zion's savior 3402 | -7/Zion | Found GAL Module 3450 | -7/Zion | Entered Proximity Caves 3450 | -6/Proximity Caves | Accompanied by 7 allies 3707 | -6/Proximity Caves | Build established: Mutant 3859 | -6/Proximity Caves | Attracted the attention of an 0b10 checkpoint 3864 | -6/Proximity Caves | Core integrity fell below 50% 3978 | -6/Proximity Caves | Attracted the attention of an 0b10 outpost 3987 | -6/Proximity Caves | Core integrity fell below 20% 3989 | -6/Proximity Caves | Self-destructed Last Messages --------------- 03884_ Acquired Imp. Light Armor Plating. 03888_ Searching scrap... 03888_ Found Terrain Scan Processor. 03888_ Found 21 Matter. 03977_ Penetrated by Slug. 03978_ Y-64 Sentinel: "DETECTED UNIDENTIFIED DERELICT." 03979_ Penetrated by Slug. 03980_ Y-64 Sentinel suffers critical hit (Burn). 03982_ Y-64 Sentinel: "REQUESTING BACKUP." 03982_ Imp. Treads destroyed. 03982_ Penetrated by Slug. 03985_ Lgt. Treads destroyed. 03985_ Penetrated by Slug. 03985_ Rnf. Ion Engine destroyed. 03985_ Y-64 Sentinel critical meltdown. 03987_ Shotgun destroyed. 03987_ Imp. Treads destroyed. 03987_ System corrupted by crushing effect (+4). 03987_ System corrupted by crushing effect (+2). 03988_ T%TEEN8O:# EQ0OIYTKWX Map ----- +----------------------------------------------------+ | | | | | | | ?????????????????????????????????????????????????? | | ?????????????????????????????????????????????????? | | ?????????????????????????????????????????????????? | | ?????????????????????????????????????????????????? | | ?????????????????????????????????????????????????? | | ?????????????????????????????????????????????????? | | ?????????????????????????????????????????????????? | | ?????????????????????????????????????????????????? | | ?????????????????????????????????????????????????? | | ?????????????????????????????????????????????????? | | ?????????????????????????????????????????????????? | | ?????????????????????????????????????????????????? | | ?????????????????????????????????????????????????? | | ????????????????????????????##???????????????????? | | ???????????????????????????? ???????????????????? | | ???????????????????#?##???### #??????????????????? | | ???????????????????# #""??""# #????????????####??? | | ???????????????????# # ??Y"# #??????????? ##?? | | ???????????????????# #? "# #??????????? #?? | | ???????????????????? %#s"# ######??????? ##? | | ?????????????????????# ! "# # ##?????? #? | | ?????????????????????# lbg"# ##???## #? | | ???????????????????# ### @### ##### #? | | ???????????????????# MMM #? | | ???????????????????### ### ## ## | | ?????????????????????## ### ## ## # | | ??????????????????????## ### ## ### | | ???????????????????????####?# ## ## | | ????????????????????????????# | | ???????????????????????????## ### | | ??????????????????????????## ##?# | | ??????????????????????????# ###??# | | ?????????????????????????# ##????# | | ?????????????????????????# ##?????# | | ?????????????????????????## ############ | | ??????????????????????????###?####" #### | | ??????????????????????????????# #?# | | ?????????????????????????????## " #?# | | ?????????????????????#???????# %## #?# | | ?????????????????????# ??????## %### ### | | ?????????????????????# ?????# #?# ## | | ??????????????????????# ????# ### ## | | ???????????????????????# ???## %=#### ### | | ??????????????????????## ??## #??##### #?## | | ?????????????????????## ## ##???## #### | | ?????????????????????# ##???# | | ?????????????????????# ##??# | +----------------------------------------------------+ Best States ------------- Heat Dissipation 28 Energy Generation 14 Energy Capacity 265 Matter Stores 300 Matter Capacity 300 Sight Range 16 Terrain Scan Density 10 Armor Coverage 150 Evasion (%) 42 Targeting Accuracy 6 Recoil Reduction 4 Item Schematics ----------------- None Robot Schematics ------------------ None Fabricated ------------ Nothing Alien Tech Used ----------------- None Achievements -------------- None Challenges ------------ None Game ------ Seed GrenadePowerPit Manual? 0 Play Time 00:36:29 Cumulative 61.2 hours Start 2024.06.26 @ 02:00:09 End 2024.06.26 @ 03:42:58 Sessions 1 Manual Loads 0 Difficulty Rogue Special Mode None Game No. 91 Rogue 91 Adventurer 0 Explorer 0 Win Type - Total 0 Types 0/0/0/0/0/0/0/0/0 Lore% 33 Gallery% 46 Achievement% 32 Wizard Run 0 Options --------- Layout 0 ASCII 0 Keyboard 0 Movement Mouse Keybinds 0 Fullscreen 1 Font 24/Smallcaps Map View 76x50 Zoom Use 0% Tactical HUD 1 Map Filters NONE Filters NONE Steam 1 RUN: 8409866c-4d5e-4509-8176-b99f58f1ccb0